Cogmind - Beta 15 @@@ ROGUE MODE // 2025.07.28 @ 19:48:22 Player: Jiber Result: Destroyed by KF-CKC(R) with Subdweller Machine Gun Performance ------------- Evolutions (0) 0 Regions Visited (2) 400 Robots Destroyed (6) 30 Value Destroyed (115) 115 Prototype IDs (11) 220 Alien Tech Used (0) 0 Bonus (-3) -3 TOTAL SCORE: 762 Bonus ------- Friendly Fire -3 Cogmind --------- Core Integrity 0/250 Matter 182/300 Energy 100/100 System Corruption 0% Temperature Cool (0) Movement Walking (130) Location -10/Subcaves Parts ------- > --- POWER (1) -------- (None) > --- PROPULSION (2) --- Cargo Legs > --- UTILITY (2) ------ High-capacity Storage Unit Makeshift Light Armor Plating > --- WEAPON (2) ------- Barrage Gun Heavy Battle Rifle > --- INVENTORY (20) --- Spiked Treads Spiked Treads Wheel Structural Scanner Subdweller Optics Makeshift Light Armor Plating Makeshift System Shield Subdweller Beam Cannon Scrap Shield Fragment (37) Scrap Shield Fragment (32) Scrap Shield Fragment (30) Scrap Shield Fragment (22) Peak State ------------ > --- POWER ------------ (None) > --- PROPULSION ------- Cargo Legs > --- UTILITY ---------- High-capacity Storage Unit Makeshift Light Armor Plating > --- WEAPON ----------- Barrage Gun Heavy Battle Rifle > --- INVENTORY -------- Spiked Treads Spiked Treads Wheel Structural Scanner Subdweller Optics Makeshift Light Armor Plating Makeshift System Shield Grenade Launcher Scrap Shield Fragment Scrap Shield Fragment Scrap Shield Fragment Scrap Shield Fragment [Rating: 30] Favorites ----------- Power Ion Engine Engine Ion Engine Propulsion Spiked Treads Treads Spiked Treads Leg Cargo Legs Wheel Wheel Utility Makeshift Light Armor Plating Device Structural Scanner Storage High-capacity Storage Unit Protection Makeshift Light Armor Plating Weapon Grenade Launcher Energy Gun Medium Laser Ballistic Gun Barrage Gun Launcher Grenade Launcher Build | -11 -10 -10 ------- Run | Yrd Mat Sub Slots Evolved . | . . . Power . | . . . Propulsion . | . . . Utility . | . . . Weapon . | . . . Parts Attached 18 | . 7 11 Power 1 | . 1 . Engine 1 | . 1 . Core . | . . . Reactor . | . . . Propulsion 5 | . 2 3 Treads 2 | . . 2 Leg 1 | . . 1 Wheel 2 | . 2 . Hover . | . . . Flight . | . . . Utility 6 | . 2 4 Device 1 | . 1 . Storage 1 | . . 1 Processor . | . . . Hackware . | . . . Protection 4 | . 1 3 Artifact . | . . . Weapon 6 | . 2 4 Energy Gun 1 | . . 1 Energy Cannon . | . . . Ballistic Gun 3 | . . 3 Ballistic Cannon . | . . . Launcher 2 | . 2 . Special Weapon . | . . . Impact Weapon . | . . . Slashing Weapon . | . . . Piercing Weapon . | . . . Special Melee Weapon . | . . . Unidentified Prototypes . | . . . Parts Lost 8 | . . 8 Power 1 | . . 1 Propulsion . | . . . Utility 3 | . . 3 Weapon 4 | . . 4 Highest Loss Streak 7 | . . 7 To Critical Strikes . | . . . Average Backups 6 | 2 2 6 Power . | . . . Propulsion 1 | 1 . 1 Utility 2 | . . 3 Weapon 1 | . 2 1 Tool/Special . | . . . Unused Backups 5 | . 1 4 Power . | . . . Propulsion . | . . . Utility 3 | . . 3 Weapon 2 | . 1 1 Tool/Special . | . . . Average Slot Usage (%) 86 | . 80 87 Engine 10 | . 12 10 Treads 9 | . . 10 Leg 4 | . . 5 Wheel 8 | . 24 5 Device 5 | . 11 5 Storage 7 | . . 8 Protection 15 | . 6 16 Ballistic Gun 2 | . . 2 Launcher 21 | . 26 20 Peak Build Rating 30 | . 7 30 Average Rating 15 | . 5 17 On Entrance 2 | . . 7 Naked Turns 5 | . 5 . Heaviest Build 57 | . 13 57 Greatest Support 55 | 3 26 55 Greatest Overweight (x) 1 | . 1 1 Average Overweight (x) . | . . . Largest Inventory Capacity 20 | 5 5 20 Average Capacity 12 | 5 5 14 Most Carried 15 | 5 5 15 Average Carried 6 | 3 2 7 Final Capacity 20 | 5 5 20 Final Carried 12 | 5 4 12 Class Distribution -------------------- 100% | Mutant Dominant Class ---------------- Mutant | -10/Materials Mutant | -10/Subcaves Resources | -11 -10 -10 ----------- Run | Yrd Mat Sub Matter Collected 498 | 96 177 225 Remotely . | . . . Salvage Created 95 | . 32 63 Parts 14 | . 6 8 Haulers Intercepted . | . . . Recyclers Shooed . | . . . Parts Field Recycled . | . . . Retrieved Matter . | . . . Parts Self-Destructed 9 | . . 9 Prevented . | . . . Kills | -11 -10 -10 ------- Run | Yrd Mat Sub Combat Hostiles Destroyed 5 | . 3 2 AOE 5 | . 3 2 Classes Destroyed 3 | . 2 1 Builder 1 | . 1 . Swarmer 3 | . 3 . Subdweller 2 | . . 2 Best Kill Streak 4 | . 4 1 Combat Bots Only 3 | . 3 1 Max Kills in Single Turn 1 | . 1 1 Gunslinging . | . . . Exploded 1 | . 1 1 Melee . | . . . Uniques/NPCs Destroyed . | . . . Combat | -11 -10 -10 -------- Run | Yrd Mat Sub Hostile Shots Fired 60 | . 11 49 Missed 9 | . 2 7 Hits 51 | . 9 42 Projectile 51 | . 9 42 Critical Strikes 2 | . . 2 Actively Blocked 1 | . . 1 Damage Taken 1367 | . 148 1219 Core 251 | . 27 224 Absorbed by Shields . | . . . Redirected to Shielding 101 | . . 101 Core Remaining (%) 100 | 100 . . Volleys Fired 42 | . 4 38 Largest 2 | . 2 2 Hottest 70 | . 60 70 Shots Fired 67 | . 8 59 Gun 51 | . . 51 Cannon . | . . . Launcher 16 | . 8 8 Special . | . . . Kinetic 24 | . . 24 Thermal 27 | . . 27 Explosive 16 | . 8 8 Electromagnetic . | . . . Robot Hit Streak 13 | . 2 13 Robot Miss Streak 2 | . 1 2 Penetration Max . | . . . Secondary Targets . | . . . Shots Hit Robots 50 | . 3 47 Core Hits 9 | . 5 4 Critical Kills . | . . . Critical Parts Destroyed . | . . . Critical Strikes . | . . . Melee Attacks . | . . . Impact . | . . . Slashing . | . . . Piercing . | . . . Sneak Attacks . | . . . Combat Hostiles . | . . . Follow-up Attacks . | . . . Damage Inflicted 509 | . 303 206 Guns 81 | . . 81 Cannons . | . . . Explosions 428 | . 303 125 Melee . | . . . Ramming . | . . . Kinetic 81 | . . 81 Thermal . | . . . Explosive 428 | . 303 125 Electromagnetic . | . . . Impact . | . . . Slashing . | . . . Piercing . | . . . Highest Corruption . | . . . Average Corruption . | . . . Corruption Purged . | . . . Corruption Blocked . | . . . Overload Shots . | . . . Overflow Damage 38 | . 36 2 Projectiles . | . . . Explosions 38 | . 36 2 Melee . | . . . Knockbacks . | . . . Impact . | . . . Kinetic . | . . . Secondary . | . . . Self-Inflicted Damage 142 | . 78 64 Shots 7 | . 5 2 Rammed . | . . . Targets Rammed . | . . . Kicked . | . . . Crushed . | . . . Highest Temperature 279 | . . 279 Average Temperature 167 | . . 167 Received Heat Transfer 614 | . . 614 Siege Activations . | . . . Martial Activations . | . . . Shielding Activations . | . . . Robots Disrupted . | . . . Combat Hostiles . | . . . Robots Corrupted . | . . . Combat Hostiles . | . . . Parts Fried . | . . . Impact Corruptions . | . . . Robots Melted . | . . . Combat Hostiles . | . . . Parts Melted . | . . . Heat Transferred . | . . . Parts Sabotaged . | . . . Parts Stolen . | . . . Parts Stripped . | . . . Power Chain Reactions . | . . . Alert | -11 -10 -10 ------- Run | Yrd Mat Sub Maximum Alert Level . | . . . Low Security (%) 100 | 100 100 . Level 1 . | . . . Level 2 . | . . . Level 3 . | . . . Level 4 . | . . . Level 5 . | . . . High Security . | . . . Max Security . | . . . Peak Influence 111 | . 111 . Initial . | . . . Average 47 | . 57 . Influence Increases 111 | . 111 . Destroy 0b10 Robot/C 60 | . 60 . Destroy 0b10 Robot/NC 5 | . 5 . Destroy Leader 10 | . 10 . Destroy Structure 36 | . 36 . Influence Decreases 111 | . 40 71 Entered New Map 35 | . . 35 Time Decay 76 | . 40 36 Squads Dispatched . | . . . Investigation . | . . . Extermination . | . . . Reinforcement . | . . . Assault . | . . . Garrison . | . . . Intercept . | . . . Searches Triggered . | . . . Construction Impeded . | . . . Haulers Reinforced . | . . . Active Scanning Responses . | . . . Cargo Convoy Interrupts . | . . . Stealth | -11 -10 -10 --------- Run | Yrd Mat Sub Distress Signals . | . . . Communications Jammed . | . . . Distress Signals . | . . . Times Spotted 6 | . 3 3 Peak Tracking Total 3 | . 3 1 Tactical Retreats . | . . . Traps | -11 -10 -10 ------- Run | Yrd Mat Sub Traps Triggered 1 | . . 1 Indirectly . | . . . Trap Hack Attempts . | . . . Triggered . | . . . Disarmed . | . . . Reprogrammed . | . . . Reused . | . . . Traps Extracted . | . . . Installed . | . . . Triggered . | . . . Machines | -11 -10 -10 ---------- Run | Yrd Mat Sub Machines Disabled 2 | . . 2 Max in Single Turn 2 | . . 2 Machines Repaired . | . . . Machines Dismantled . | . . . Machines Sabotaged . | . . . Overloaded Fab Kills . | . . . Hacking | -11 -10 -10 --------- Run | Yrd Mat Sub Machines Accessed 1 | . . 1 Terminals . | . . . Fabricators . | . . . Repair Stations . | . . . Recycling Units . | . . . Scanalyzers . | . . . Garrison Access . | . . . Total Hacks 9 | . . 9 Successful 9 | . . 9 Failed . | . . . Catastrophic . | . . . Database Lockouts . | . . . Manual . | . . . Terminals . | . . . Fabricators . | . . . Repair Stations . | . . . Recycling Units . | . . . Scanalyzers . | . . . Garrison Access . | . . . Terminal Hacks 9 | . . 9 Record 8 | . . 8 Proto ID Catalog 1 | . . 1 Fabricator Hacks . | . . . Repair Station Hacks . | . . . Recycling Unit Hacks . | . . . Scanalyzer . | . . . Garrison Access Hacks . | . . . Unauthorized Hacks . | . . . Terminals . | . . . Fabricators . | . . . Repair Stations . | . . . Recycling Units . | . . . Scanalyzers . | . . . Garrison Access . | . . . Data Cores Recovered . | . . . Used . | . . . Hacking Detections . | . . . Full Trace Events . | . . . Feedback Events . | . . . Feedback Blocked . | . . . Robot Schematics Acquired . | . . . Robots Built . | . . . Authchips . | . . . Time . | . . . Total Robot Build Rating . | . . . Part Schematics Acquired . | . . . Parts Built . | . . . Authchips . | . . . Time . | . . . Total Part Build Rating . | . . . Parts Repaired . | . . . Time . | . . . Parts Recycled . | . . . Recycled Matter . | . . . Retrieved Matter . | . . . Retrieved Components . | . . . Parts Scanalyzed . | . . . Part Schematics Acquired . | . . . Parts Damaged . | . . . Bothacking | -11 -10 -10 ------------ Run | Yrd Mat Sub Used RIF Installer . | . . . Robots Hacked . | . . . Non-combat . | . . . Combat . | . . . Robot Hacks Applied . | . . . Relay Couplers Released . | . . . Fabnet Peak Effective % . | . . . Robots Rewired . | . . . Allies Hacked . | . . . Hacks Repelled . | . . . Allies | -11 -10 -10 -------- Run | Yrd Mat Sub Total Allies . | . . . Largest Group . | . . . Highest-Rated Group . | . . . Highest-Rated Ally . | . . . Total Orders . | . . . Ally Attacks . | . . . Total Damage . | . . . Kills . | . . . Allies Corrupted . | . . . Allies Melted . | . . . Intel | -11 -10 -10 ------- Run | Yrd Mat Sub Active Infowar (turns) 414 | . 115 299 Structural 414 | . 115 299 Robot Analysis Total . | . . . Derelict Logs Recovered . | . . . Drone Launches . | . . . Drone Recoveries . | . . . Exploration | -11 -10 -10 ------------- Run | Yrd Mat Sub Turns Passed 979 | 29 139 811 Spaces Moved 509 | 48 127 334 Core 61 | 48 13 . Treads 178 | . . 178 Legs 145 | . . 145 Wheels 125 | . 114 11 Hover . | . . . Flight . | . . . Fastest Speed 50 | 50 50 90 Average Speed 142 | 50 87 175 Slowest Speed 260 | 50 100 260 Overloaded Moves . | . . . Propulsion Burnouts . | . . . Robots Hopped . | . . . Potential Cave-ins . | . . . Cave-ins Triggered . | . . . Exploration Rate (%) 14 | 4 31 7 Regions Visited 2 Branch Regions 1 Pre-discovered Areas . | . . . Known Exits Taken . | . . . Unknown Exits Taken 2 | 1 1 . Scrap Searched 6 | . . 6 Spaces Dug 8 | . . 8 Terrain Destroyed 97 | . 59 38 Melee . | . . . Projectile . | . . . AOE 97 | . 59 38 Terrain Rammed . | . . . Walls Destroyed . | . . . Machines Disabled . | . . . Actions | -11 -10 -10 --------- Run | Yrd Mat Sub Total 697 | 52 146 499 Wait 85 | . 3 82 Move 507 | 47 126 334 Hop . | . . . Pick Up 31 | 5 5 21 Fast Attach 2 | . 2 . Attach 13 | . 5 8 Detach 2 | . . 2 Swap 7 | . . 7 Drop 8 | . 1 7 Fire 42 | . 4 38 Melee . | . . . Ram . | . . . Kick . | . . . Crush . | . . . Escape Stasis . | . . . Rewire . | . . . Trap . | . . . Miscellaneous . | . . . Route ------- -11/Scrapyard -10/Materials -10/Subcaves (discovered 1 exit: [*Mat]) History --------- Turn | Location | Event 20 | -11/Scrapyard | Discovered new exit (range 12) 30 | -11/Scrapyard | Entered Materials 108 | -10/Materials | Discovered new exit (range 10) 169 | -10/Materials | Entered Subcaves 172 | -10/Subcaves | Shifting Twisted Machinery released Spk. Treads 192 | -10/Subcaves | Shifting Twisted Machinery released Mak. Light Armor Plating 278 | -10/Subcaves | Visited 4L-MR0's lab 309 | -10/Subcaves | Build established: Mutant 630 | -10/Subcaves | Found Cargo Legs 633 | -10/Subcaves | Attached Cargo Legs, gained temporary slots: Utility x2 788 | -10/Subcaves | Core integrity fell below 50% 840 | -10/Subcaves | Core integrity fell below 20% 870 | -10/Subcaves | Lost 7 parts (1p3u3w) 961 | -10/Subcaves | Discovered new exit (range 15) 980 | -10/Subcaves | Destroyed by KF-CKC(R) with Subdweller Machine Gun Last Messages --------------- 00891_ Searching scrap... 00891_ Found Mak. Light Armor Plating. 00891_ Found Hvy. Battle Rifle. 00891_ Found 30 Matter. 00894_ Acquired Hvy. Battle Rifle. 00896_ Acquired Mak. Light Armor Plating. 00900_ Acquired Barrage Gun. 00905_ Acquired Sub. Beam Cannon. 00906_ Acquired 5 matter. 00915_ Subatomizers dissect the Sub. Monowheel. 00929_ The unstable cave ceiling collapses. 00930_ Subatomizers dissect the Flamer. 00936_ The unstable cave ceiling collapses. 00954_ Subatomizers dissect the Flamer. 00954_ TI-MRE(R) destroyed. 00961_ EXIT=FOUND 00962_ The unstable cave ceiling collapses. 00966_ Grenade Launcher destroyed. 00975_ Subatomizers dissect the Sub. Monowheel. 00979_ The unstable cave ceiling collapses. Map ----- +----------------------------------------------------+ | | | ?????????????????????????????????????????????????? | | ?????????????????????????????????????????????????? | | ?????????????????????????????????????????????????? | | ?????????????????????????????????????????????????? | | ?????????????????????????????????????????????????? | | ?????????????????????????????????????????????????? | | ?????????????????????????????????????????????????? | | ?????????????????????????????????????????????????? | | ?????????????????????????????????????????????????? | | ?????????????????????????????????????????????????? | | ????????????######???????????????????????????????? | | ????????????#% %"##??????????????????????????????? | | ???????????###" #??????????????????????????????? | | #??????????###### #??????????????????????????????? | | #####??????# =|"#??????????????????????????????? | | ######?##### & = ###?????????????????????????????? | | # ######### <# ###???????"""?????????????????? | | ## # # # ##?###??""??????????????????? | | # ### #? ??????????????????? | | # # ### " # ## ""??????????????????? | | # # ######### "#"""#??????????????????? | | # # ##?????## """"##??????????????????? | | ## ###??????## # " "" #??????????????????? | | ##" """ ##???????### # !& & #""" ""????????????? | | ## """" ##?????????# ###"@!= #??????????? | | # # # ##?????????####" #??????????? | | ## ##????????????# # #?????????? | | "##????????????# # R""""?????????? | | "###????????????########## <"???????????? | | "###??????????????????????? "???????????? | | #####?????????????????????????####???????????? | | # #####????????????????????????????????????????? | | # ##??????????????????????????????????????????? | | ##??????????????????????????????????????????? | | ###??????????????????????????????????????????? | | ####??????????????????????????????????????????? | | ###???????????????????????????????????????????? | | # ##????????????????????????????????????????????? | | " ##????????????????????????????????????????????? | | " ##????????????????????????????????????????????? | | " ###????????????????????????????????????????????? | | " ##????????????????????????????????????????????? | | ##????????????????????????????????????????????? | | #####?????????????????????????????????????????? | | #####?????????????????????????????????????????? | | # ###????????????????????????????????????????? | | ### ###???????????????????????????????????????? | | #### ###??????????????????????????????????????? | | ??### ##??????????????????????????????????????? | +----------------------------------------------------+ Best States ------------- Heat Dissipation 25 Energy Generation 10 Energy Capacity 250 Matter Stores 300 Matter Capacity 300 Sight Range 16 Terrain Scan Density 10 Armor Coverage 100 Propulsion Shielding 33 Weapon Shielding 33 Evasion (%) 55 Recoil Reduction 2 Item Schematics ----------------- None Robot Schematics ------------------ None Fabricated ------------ Nothing Repaired ---------- Nothing Alien Tech Used ----------------- None Achievements -------------- None Challenges ------------ None Game ------ Seed SuperquantumQuantumFocus Manual? 0 Play Time 00:19:39 Cumulative 15.5 hours Start 2025.07.28 @ 19:28:23 End 2025.07.28 @ 19:48:22 Sessions 1 Manual Loads 0 Difficulty Rogue Special Mode None Game No. 23 Rogue 23 Adventurer 0 Explorer 0 Win Type - Total 0 Types 0/0/0/0/0/0/0/0/0/0 Lore% 8 Gallery% 20 Achievement% 17 Wizard Run 0 Options --------- Layout 1 ASCII 0 Keyboard 0 Movement Mouse Keybinds 0 Fullscreen 1 Font 32/SmallcapsGlow Map View 50x35 Zoom Use 0% Tactical HUD 1 Map Filters NONE Filters NONE Steam 1 RUN: 80f38191-b168-4cdd-9ec8-d3c2fa73ee1d